bitfinex/quotes_SOLUSD_20250102
["timestamp","ask_amount","ask_price","bid_price","bid_amount"]
[1735776331074,23.776884,194.26,194.16,15.93703662]
[1735776331279,23.776884,194.26,194.17,15.93703662]
[1735776332109,23.776884,194.26,194.16,15.93703662]
[1735776332778,23.776884,194.26,194.14,37.22889985]
[1735776332993,23.776884,194.26,194.14,35.93703662]
[1735776333278,23.776884,194.26,194.14,20.0]
[1735776333597,23.776884,194.26,194.14,35.93703662]
[1735776334997,23.776884,194.26,194.15,15.93703662]
[1735776336387,23.776884,194.26,194.14,35.93703662]
[1735776337188,23.776884,194.26,194.14,20.0]
[1735776337381,20.0,194.23,194.13,15.93703662]
[1735776338595,23.776884,194.22,194.13,15.93703662]
[1735776338792,23.776884,194.22,194.12,15.93703662]
[1735776338989,23.776884,194.22,194.11,28.81623662]
[1735776339503,23.776884,194.22,194.11,15.93703662]
[1735776340206,23.776884,194.22,194.1,15.93703662]
[1735776340398,6.6019,194.21,194.1,15.93703662]
[1735776340901,23.776884,194.2,194.11,15.93703662]
[1735776341701,23.776884,194.2,194.12,15.93703662]
[1735776343003,23.776884,194.2,194.11,15.93703662]
[1735776344979,23.776884,194.2,194.1,35.93703662]
[1735776346086,23.776884,194.2,194.1,20.0]
[1735776346419,23.776884,194.2,194.06,15.93703662]
[1735776346890,23.776884,194.2,194.07,1.29224744]
[1735776347094,23.776884,194.2,194.07,3.78423327]
[1735776347293,23.776884,194.2,194.07,39.72126989]
[1735776347604,23.776884,194.2,194.08,3.78423327]
[1735776348203,23.776884,194.2,194.1,35.93703662]
[1735776348401,6.6019,194.21,194.11,16.70962552]
[1735776348700,6.6019,194.21,194.11,15.93703662]
[1735776349292,6.6019,194.21,194.12,15.93703662]
[1735776352313,6.6019,194.21,194.13,15.93703662]
[1735776352513,6.003,194.25,194.15,15.93703662]
[1735776353085,23.776884,194.24,194.16,15.93703662]
[1735776353584,6.003,194.25,194.17,15.93703662]
[1735776354010,6.003,194.25,194.18,15.93703662]
[1735776354784,6.003,194.25,194.17,15.93703662]
[1735776355002,6.003,194.25,194.18,1.29175312]
[1735776355311,6.003,194.25,194.18,17.22878974]
[1735776355480,6.3524,194.3,194.2,15.93703662]
[1735776355681,6.3524,194.3,194.21,15.93703662]
[1735776356394,6.3524,194.3,194.2,15.93703662]
[1735776358990,6.3524,194.3,194.23,20.0]
[1735776361711,23.776884,194.29,194.19,15.93703662]
[1735776362314,23.776884,194.29,194.21,20.0]
[1735776363017,23.776884,194.29,194.19,20.0]
[1735776363188,23.776884,194.29,194.19,21.29170382]
[1735776363920,23.776884,194.29,194.19,20.0]
[1735776364517,23.776884,194.29,194.18,20.0]
[1735776364706,23.776884,194.29,194.19,20.0]
[1735776366106,23.776884,194.29,194.18,20.0]
[1735776366420,23.776884,194.29,194.18,35.93703662]
[1735776366620,23.776884,194.29,194.19,1.29168173]
[1735776367601,23.776884,194.29,194.18,35.93703662]
[1735776368114,6.3524,194.3,194.2,35.93703662]
[1735776368829,6.3524,194.3,194.21,15.93703662]
[1735776369013,6.003,194.3,194.22,15.93703662]
[1735776369198,0.3494,194.34,194.24,35.93703662]
[1735776369908,24.126284,194.34,194.24,35.93703662]
[1735776370105,24.126284,194.34,194.24,20.0]
[1735776370414,24.126284,194.34,194.25,1.29118716]
[1735776370819,0.3494,194.34,194.25,1.29118716]
[1735776371131,0.3494,194.34,194.24,15.93703662]
[1735776372316,0.3494,194.34,194.24,35.93703662]
[1735776372516,0.3494,194.34,194.25,1.2911735]
[1735776373517,0.3494,194.34,194.24,35.93703662]
[1735776373718,0.3494,194.34,194.24,20.0]
[1735776374031,0.3494,194.34,194.24,21.29117007]
[1735776376028,0.3494,194.34,194.24,20.0]
[1735776376216,0.3494,194.34,194.24,30.2090172]
[1735776376421,0.3494,194.34,194.24,20.0]
[1735776376737,24.126284,194.34,194.21,12.8726]
[1735776376949,20.0,194.31,194.2,2.34329494]
[1735776377108,23.776884,194.3,194.18,0.77219021]
[1735776377437,6.5605,194.29,194.17,12.8748]
[1735776378933,6.5605,194.29,194.17,28.83873695]
[1735776380441,6.5605,194.29,194.18,23.776884]
[1735776380846,6.5605,194.29,194.18,39.74082095]
[1735776382641,6.5605,194.29,194.19,15.96393695]
[1735776384043,6.5605,194.29,194.18,23.776884]
[1735776384250,6.5605,194.29,194.18,39.74082095]
[1735776385165,6.5605,194.29,194.2,39.74082095]
[1735776385325,6.5605,194.29,194.21,15.96393695]
[1735776385816,6.5605,194.29,194.22,15.96393695]
[1735776386218,6.5605,194.29,194.21,39.74082095]
[1735776387155,6.9229,194.34,194.25,20.0]
[1735776387522,6.9229,194.34,194.25,35.96393695]
[1735776387845,6.9229,194.34,194.26,15.96393695]
[1735776388949,6.9229,194.34,194.25,35.96393695]
[1735776389151,6.9229,194.34,194.24,20.0]
[1735776389936,6.9229,194.34,194.22,15.96393695]
[1735776393193,6.9229,194.34,194.21,17.25535613]
[1735776393368,6.9229,194.34,194.2,28.83713695]
[1735776393662,6.9229,194.34,194.21,23.776884]
[1735776395851,6.9229,194.34,194.2,28.83713695]
[1735776396253,6.9229,194.34,194.21,1.29150167]
[1735776397077,6.9229,194.34,194.2,28.83713695]
[1735776397648,6.9229,194.34,194.21,15.96393695]
[1735776398967,6.9229,194.34,194.22,1.29149064]
[1735776399552,6.9229,194.34,194.21,15.96393695]
[1735776400373,6.9229,194.34,194.21,10.21186566]
[1735776400568,6.9229,194.34,194.22,1.29149389]
[1735776401177,6.9229,194.34,194.21,10.21186566]
[1735776402374,6.9229,194.34,194.2,10.98396467]
[1735776402578,6.9229,194.34,194.22,1.29148828]
[1735776402977,6.9229,194.34,194.2,10.98396467]
[1735776403380,23.776884,194.33,194.2,10.21186566]
[1735776403558,23.776884,194.33,194.21,1.29149021]
[1735776404362,23.776884,194.33,194.19,46.86214966]
[1735776404568,23.776884,194.33,194.2,10.21186566]
[1735776405784,6.9229,194.34,194.23,20.0]
[1735776405992,6.9229,194.34,194.25,10.21186566]
[1735776406287,6.9229,194.34,194.28,10.21186566]
[1735776406500,6.9229,194.34,194.24,20.0]
[1735776406501,14.73830157,194.39,194.3,10.21186566]
[1735776407069,23.776884,194.38,194.3,10.21186566]
[1735776407264,6.6492,194.39,194.3,10.21186566]
[1735776407562,6.6492,194.39,194.31,10.21186566]
[1735776407758,23.776884,194.38,194.3,10.21186566]
[1735776407963,23.776884,194.38,194.29,10.21186566]
[1735776408406,23.776884,194.38,194.3,10.21186566]
[1735776408689,6.6492,194.39,194.31,10.21186566]
[1735776408989,23.776884,194.38,194.31,10.21186566]
[1735776409387,6.6492,194.39,194.31,10.21186566]
[1735776409778,23.776884,194.38,194.31,10.21186566]
[1735776410086,23.776884,194.38,194.3,10.98358557]
[1735776410287,23.776884,194.38,194.3,10.21186566]
[1735776410592,23.776884,194.38,194.31,1.29086903]
[1735776411194,23.776884,194.38,194.23,15.30565424]
[1735776411392,23.776884,194.38,194.25,10.21186566]
[1735776411599,23.776884,194.38,194.25,10.98378168]
[1735776411894,23.776884,194.38,194.26,1.29101161]
[1735776412099,23.776884,194.34,194.26,1.29101161]
[1735776412460,23.776884,194.3,194.26,1.29101161]
[1735776412665,20.0,194.3,194.24,1.29101161]
[1735776413089,23.776884,194.32,194.24,1.29101161]
[1735776413479,23.776884,194.32,194.19,30.98402297]
[1735776413793,23.776884,194.32,194.21,10.21186566]
[1735776414001,23.776884,194.32,194.22,0.77203385]
[1735776415005,23.776884,194.32,194.23,1.29138466]
[1735776415710,23.776884,194.32,194.22,20.0]
[1735776416311,23.776884,194.32,194.2,0.77210196]
[1735776416602,23.776884,194.32,194.21,20.0]
[1735776416896,23.776884,194.32,194.21,21.29138516]
[1735776417467,23.776884,194.32,194.22,0.77210736]
[1735776417671,23.776884,194.32,194.22,2.06349252]
[1735776418274,23.776884,194.32,194.23,1.29138516]
[1735776419189,23.776884,194.32,194.19,20.0]
[1735776419602,23.776884,194.28,194.16,6.2288]
[1735776420708,23.776884,194.28,194.18,1.29165381]
[1735776421094,23.776884,194.28,194.19,1.29165381]
[1735776421612,23.776884,194.28,194.16,6.2288]
[1735776421913,23.776884,194.28,194.16,7.0011162]
[1735776422314,16.62531827,194.33,194.2,20.0]
[1735776422315,11.47931827,194.33,194.2,20.0]
[1735776422514,11.47931827,194.33,194.2,20.77209921]
[1735776423100,23.776884,194.32,194.21,1.29165878]
[1735776423984,23.776884,194.32,194.22,1.29165878]
[1735776424623,23.776884,194.32,194.23,1.29165878]
[1735776425116,23.776884,194.32,194.2,30.98396487]
[1735776425292,5.1449,194.37,194.2,30.98396487]
[1735776425497,23.776884,194.36,194.2,30.98396487]
[1735776425910,20.0,194.33,194.21,1.29138052]
[1735776426213,20.0,194.33,194.21,21.29138052]
[1735776426214,23.776884,194.32,194.21,21.29138052]
[1735776426887,23.776884,194.32,194.22,1.29138052]
[1735776427492,23.776884,194.32,194.23,1.29138052]
[1735776428111,23.776884,194.32,194.22,20.0]
[1735776428524,23.776884,194.32,194.21,0.77209747]
[1735776429122,23.776884,194.32,194.22,1.29141772]
[1735776429697,20.0,194.34,194.24,7.8834]
[1735776430517,23.776884,194.33,194.24,7.8834]
[1735776435506,5.1449,194.37,194.24,7.8834]
[1735776435713,17.92371432,194.38,194.24,7.8834]
[1735776436036,13.23310157,194.4,194.27,20.0]
[1735776436533,20.0,194.37,194.27,20.0]
[1735776436728,23.776884,194.36,194.27,20.0]
[1735776437239,23.776884,194.39,194.27,20.0]
[1735776438540,23.776884,194.35,194.24,7.8834]
[1735776438944,23.776884,194.33,194.24,7.8834]
[1735776439650,23.776884,194.33,194.25,2.06327915]
[1735776440347,23.776884,194.33,194.26,1.29127236]
[1735776441220,23.776884,194.33,194.27,1.29127236]
[1735776442133,23.776884,194.33,194.25,0.77200679]
[1735776442522,23.776884,194.33,194.26,1.29118349]
[1735776443220,23.776884,194.33,194.24,1.5593]
[1735776445348,23.776884,194.33,194.24,2.33132763]
[1735776445556,4.93561827,194.39,194.25,6.5477]
[1735776445724,4.93561827,194.39,194.28,20.0]
[1735776445929,8.08910157,194.4,194.29,2.40102843]
[1735776446354,23.776884,194.37,194.29,1.6292]
[1735776446555,23.776884,194.37,194.3,1.29124427]
[1735776446724,23.776884,194.33,194.3,1.29124427]
[1735776447345,23.776884,194.33,194.29,1.6292]
[1735776448736,23.776884,194.33,194.25,8.1769]
[1735776449060,23.776884,194.29,194.25,8.1769]
[1735776449431,23.776884,194.32,194.25,8.1769]
[1735776450255,4.93561827,194.37,194.25,8.1769]
[1735776450577,23.776884,194.38,194.25,8.1769]
[1735776451077,23.776884,194.34,194.26,1.29120013]
[1735776451844,23.776884,194.34,194.27,1.29120013]
[1735776452054,86.6435,194.42,194.27,1.29120013]
[1735776452255,23.776884,194.41,194.27,1.29120013]
[1735776452453,23.776884,194.41,194.28,1.29120013]
[1735776453187,23.776884,194.41,194.26,0.7719322]
[1735776453188,20.0,194.38,194.26,0.7719322]
[1735776453395,20.0,194.38,194.25,8.1769]
[1735776454098,20.0,194.38,194.26,1.29106319]
[1735776454898,20.0,194.36,194.26,1.29106319]
[1735776455186,20.0,194.36,194.27,1.29106319]
[1735776455187,23.776884,194.35,194.27,1.29106319]
[1735776455868,23.776884,194.31,194.25,8.1769]
[1735776456771,23.776884,194.31,194.25,1.6292]
[1735776462384,23.776884,194.31,194.2,7.823]
[1735776462595,23.776884,194.27,194.2,7.823]
[1735776469704,20.0,194.24,194.2,1.6083]
[1735776469922,23.776884,194.23,194.2,1.6083]
[1735776470118,23.776884,194.23,194.16,9.27056573]
[1735776470321,23.776884,194.23,194.16,7.9788]
[1735776474832,4.93561827,194.29,194.16,7.9788]
[1735776475011,43.776884,194.28,194.16,7.9788]
[1735776475217,23.776884,194.25,194.16,7.9788]
[1735776481010,20.0,194.18,194.16,1.6496]
[1735776481317,23.776884,194.17,194.16,1.6496]
[1735776482141,23.776884,194.17,194.11,7.9788]
[1735776483042,20.0,194.18,194.11,7.9788]
[1735776483043,5.40947429,194.23,194.11,7.9788]
[1735776483256,20.0,194.2,194.11,7.9788]
[1735776483547,23.776884,194.22,194.11,7.9788]
[1735776483751,5.40947429,194.23,194.11,7.9788]
[1735776484115,23.776884,194.2,194.11,7.9788]
[1735776484428,10.6436,194.29,194.11,7.9788]
[1735776484429,5.40947429,194.27,194.14,11.87446566]
[1735776484632,5.1461,194.32,194.16,1.6626]
[1735776484819,10.55557429,194.32,194.16,1.6626]
[1735776485134,10.55557429,194.32,194.16,12.64678808]
[1735776485513,10.55557429,194.32,194.16,2.43492242]
[1735776485514,20.0,194.29,194.16,2.43492242]
[1735776485709,10.55557429,194.32,194.16,2.43492242]
[1735776486025,20.0,194.28,194.16,2.43492242]
[1735776486215,23.776884,194.27,194.16,2.43492242]
[1735776486617,23.776884,194.25,194.16,20.0]
[1735776486835,0.77233154,194.24,194.16,20.0]
[1735776487009,23.776884,194.23,194.16,20.0]
[1735776487609,23.776884,194.26,194.16,20.0]
[1735776487843,0.77233154,194.25,194.16,20.0]
[1735776488030,23.776884,194.24,194.16,20.0]
[1735776488208,0.77233154,194.23,194.16,20.0]
[1735776488635,23.776884,194.22,194.15,20.0]
[1735776489045,24.54921554,194.28,194.15,20.0]
[1735776489648,24.54921554,194.28,194.16,8.1124]
[1735776490022,24.54921554,194.28,194.16,28.88476057]
[1735776491635,24.54921554,194.28,194.17,1.6626]
[1735776492347,0.77233154,194.31,194.19,1.6626]
[1735776492667,0.77233154,194.32,194.22,6.4498]
[1735776492973,20.0,194.35,194.23,1.6626]
[1735776493140,23.776884,194.33,194.23,1.6626]
[1735776493337,0.77233154,194.32,194.23,1.6626]
[1735776493538,0.77233154,194.34,194.23,1.6626]
[1735776494051,24.54921554,194.37,194.23,1.6626]
[1735776494244,20.0,194.34,194.23,1.6626]
[1735776494600,0.77233154,194.33,194.23,1.6626]
[1735776494967,23.776884,194.32,194.23,1.6626]
[1735776495151,0.77233154,194.31,194.23,1.6626]
[1735776495539,23.776884,194.32,194.23,1.6626]
[1735776495959,0.77233154,194.31,194.23,1.6626]
[1735776496944,23.776884,194.3,194.23,1.6626]
[1735776497258,23.776884,194.28,194.23,1.6626]
[1735776497650,28.922684,194.33,194.23,1.6626]
[1735776497847,23.776884,194.31,194.23,1.6626]
[1735776498050,23.776884,194.29,194.23,1.6626]
[1735776498246,23.776884,194.27,194.23,1.6626]
[1735776498471,23.776884,194.25,194.23,1.6626]
[1735776498643,24.54921554,194.24,194.23,1.6626]
[1735776499239,24.54921554,194.24,194.18,1.588]
[1735776500169,23.776884,194.23,194.18,1.588]
[1735776500870,23.776884,194.27,194.18,1.588]
[1735776501178,23.776884,194.25,194.18,1.588]
[1735776501352,23.776884,194.23,194.18,1.588]
[1735776502039,23.776884,194.25,194.18,1.588]
[1735776502242,23.776884,194.23,194.18,1.588]
[1735776502467,23.776884,194.21,194.18,1.588]
[1735776502974,24.54921554,194.25,194.18,1.588]
[1735776503766,23.776884,194.24,194.18,1.588]
[1735776503935,23.776884,194.22,194.18,1.588]
[1735776504138,20.0,194.26,194.18,1.588]
[1735776504139,23.776884,194.24,194.18,1.588]
[1735776504339,23.776884,194.22,194.18,1.588]
[1735776504844,23.776884,194.24,194.18,1.588]
[1735776505044,23.776884,194.22,194.18,1.588]
[1735776505257,23.776884,194.24,194.18,1.588]
[1735776505465,23.776884,194.22,194.18,1.588]
[1735776505971,23.776884,194.25,194.18,1.588]
[1735776506267,0.77233154,194.24,194.18,1.588]
[1735776506679,23.776884,194.23,194.18,1.588]
[1735776506847,23.776884,194.21,194.18,1.588]
[1735776507175,23.776884,194.19,194.18,1.588]
[1735776508060,23.776884,194.25,194.18,1.588]
[1735776508250,5.1477,194.27,194.18,1.588]
[1735776508251,23.776884,194.23,194.18,1.588]
[1735776508473,23.776884,194.21,194.18,1.588]
[1735776508674,23.776884,194.19,194.18,1.588]
[1735776509055,23.776884,194.23,194.18,1.588]
[1735776509247,23.776884,194.21,194.18,1.588]
[1735776509447,0.77233154,194.2,194.18,1.588]
[1735776509759,23.776884,194.19,194.18,1.588]
[1735776509957,23.776884,194.22,194.14,1.29192029]
[1735776510175,0.77233154,194.21,194.14,1.29192029]
[1735776510376,0.77233154,194.21,194.13,1.5551]
[1735776510565,23.776884,194.2,194.13,1.5551]
[1735776510876,23.776884,194.18,194.13,1.5551]
[1735776511173,0.77233154,194.23,194.13,1.5551]
[1735776511554,23.776884,194.22,194.13,1.5551]
[1735776511759,23.776884,194.2,194.13,1.5551]
[1735776511961,23.776884,194.18,194.13,1.5551]
[1735776512158,23.776884,194.16,194.13,1.5551]
[1735776512852,0.77233154,194.23,194.13,1.5551]
[1735776513057,23.776884,194.22,194.13,1.5551]
[1735776513260,23.776884,194.2,194.13,1.5551]
[1735776513465,25.1483,194.24,194.13,1.5551]
[1735776513466,23.776884,194.18,194.13,1.5551]
[1735776516065,0.77233154,194.23,194.13,1.5551]
[1735776516578,0.77233154,194.27,194.14,0.77239379]
[1735776516952,0.77233154,194.27,194.15,1.29181334]
[1735776517152,6.1209,194.26,194.16,0.77238878]
[1735776517359,23.776884,194.09,194.03,16.22433295]
[1735776517574,0.96608643,194.08,194.06,8.11216647]
[1735776517875,23.776884,194.07,194.06,8.11216647]
[1735776518058,6.1209,194.15,194.06,8.11216647]
[1735776518059,23.776884,194.11,194.06,8.11216647]
[1735776518377,0.96618281,194.11,194.06,8.11216647]
[1735776518566,20.0,194.11,194.04,6.0031]
[1735776518873,5.1504,194.16,194.04,6.0031]
[1735776518874,0.96607674,194.13,194.04,6.0031]
[1735776519077,0.96598762,194.15,194.04,6.0031]
[1735776519491,43.776884,194.14,194.04,6.0031]
[1735776519655,0.96595673,194.13,194.04,6.0031]
[1735776524480,0.96597758,194.19,194.05,1.5042]
[1735776524661,0.96589558,194.16,194.05,1.5042]
[1735776524861,11.2704,194.2,194.06,0.38701406]
[1735776524862,0.96586719,194.19,194.06,0.38701406]
[1735776526297,23.776884,194.16,194.06,0.38701406]
[1735776526461,24.74269678,194.16,194.06,0.38701406]
[1735776527480,24.74269678,194.16,194.05,1.5042]
[1735776528386,24.74269678,194.16,194.05,1.89119847]
[1735776529350,23.776884,194.16,194.05,1.89119847]
[1735776529791,23.776884,194.16,194.05,3.18351086]
[1735776530164,24.7426545,194.16,194.05,3.18351086]
[1735776530881,6.11433956,194.24,194.07,20.0]
[1735776531064,0.96572615,194.21,194.07,20.38673198]
[1735776531868,20.0,194.19,194.07,20.38673198]
[1735776532076,24.74262171,194.18,194.07,20.38673198]
[1735776532466,7.80167176,194.21,194.08,21.6087]
[1735776532671,0.96569515,194.2,194.09,6.48606999]
[1735776533461,7.80167176,194.21,194.1,1.6087]
[1735776533685,7.80167176,194.21,194.11,0.38636948]
[1735776533866,23.776884,194.22,194.11,0.38636948]
[1735776534070,23.776884,194.2,194.11,0.38636948]
[1735776534476,23.776884,194.23,194.11,0.38636948]
[1735776534681,0.96555112,194.22,194.11,0.38636948]
[1735776535178,20.96555112,194.22,194.11,0.38636948]
[1735776535885,20.96555112,194.22,194.12,20.0]
[1735776536090,0.96549722,194.24,194.15,6.0994]
[1735776536258,0.96537125,194.29,194.15,6.48542219]
[1735776536462,23.776884,194.26,194.15,6.48542219]
[1735776536660,23.776884,194.24,194.15,6.48542219]
[1735776537679,23.776884,194.25,194.15,6.48542219]
[1735776540084,23.776884,194.25,194.15,7.77719062]
[1735776540283,23.776884,194.25,194.16,1.6087]
[1735776540478,0.96537075,194.26,194.16,1.6087]
[1735776540674,20.0,194.29,194.16,1.6087]
[1735776540875,5.1464,194.32,194.16,1.6087]
[1735776540876,0.96533646,194.28,194.16,1.6087]
[1735776541075,0.96530256,194.31,194.16,1.6087]
[1735776541278,20.0,194.29,194.16,1.6087]
[1735776541482,23.776884,194.27,194.16,1.6087]
[1735776541689,23.776884,194.25,194.16,1.6087]
[1735776541889,23.776884,194.27,194.16,2.90046843]
[1735776542099,23.776884,194.25,194.16,2.90046843]
[1735776542592,23.776884,194.27,194.16,2.90046843]
[1735776542902,23.776884,194.25,194.16,2.90046843]
[1735776543109,23.776884,194.23,194.16,2.90046843]
[1735776543280,0.96551163,194.27,194.16,2.90046843]
[1735776543503,0.96551163,194.27,194.16,1.6087]
[1735776544012,23.776884,194.26,194.16,1.6087]
[1735776544176,0.9653559,194.25,194.16,1.6087]
[1735776544997,0.96534905,194.26,194.16,1.6087]
[1735776545815,23.776884,194.25,194.16,1.6087]
[1735776545985,23.776884,194.23,194.16,1.6087]
[1735776546183,0.96555122,194.22,194.16,1.6087]
[1735776547316,23.776884,194.26,194.16,1.6087]
[1735776547486,0.96547589,194.25,194.16,1.6087]
[1735776548211,23.776884,194.24,194.16,1.6087]
[1735776548505,23.776884,194.27,194.16,1.6087]
[1735776548824,0.96543847,194.26,194.16,2.90047524]
[1735776549639,0.96543847,194.26,194.16,1.6087]
[1735776550080,6.11343847,194.26,194.16,1.6087]
[1735776550274,20.0,194.23,194.16,1.6087]
[1735776550501,23.776884,194.21,194.16,1.6087]
[1735776550695,23.776884,194.19,194.16,1.6087]
[1735776550935,0.96569803,194.18,194.16,1.6087]
[1735776551338,0.96573449,194.22,194.16,1.6087]
[1735776551638,23.776884,194.21,194.16,1.6087]
[1735776551845,0.96566832,194.2,194.16,1.6087]
[1735776552529,23.776884,194.19,194.16,1.6087]
[1735776552729,0.9657106,194.18,194.16,1.6087]
[1735776553032,23.776884,194.21,194.16,1.6087]
[1735776553237,23.776884,194.19,194.16,1.6087]
[1735776556738,0.9656745,194.18,194.16,1.6087]
[1735776556937,23.776884,194.17,194.16,1.6087]
[1735776557117,23.776884,194.17,194.11,1.6131]
[1735776557318,0.96580644,194.16,194.11,1.6131]
[1735776557943,23.776884,194.18,194.11,1.6131]
[1735776558126,24.74264508,194.19,194.11,1.6131]
[1735776561544,0.96569727,194.22,194.11,1.6131]
[1735776562052,5.1477,194.27,194.14,21.5059]
[1735776562228,23.776884,194.25,194.14,21.5059]
[1735776562552,0.96539601,194.24,194.15,0.38607171]
[1735776562735,23.776884,194.23,194.15,1.29179075]
[1735776562937,23.776884,194.21,194.15,1.29179075]
[1735776563235,23.776884,194.21,194.14,1.5059]
[1735776563236,0.96565284,194.2,194.14,1.5059]
[1735776564128,23.776884,194.19,194.14,1.5059]
[1735776564328,0.96576973,194.18,194.14,1.5059]
[1735776566131,23.776884,194.17,194.1,6.1168]
[1735776566332,23.776884,194.15,194.1,6.1168]
[1735776566639,0.96597877,194.14,194.1,6.1168]
[1735776566823,23.776884,194.16,194.1,6.1168]
[1735776567028,0.96585741,194.15,194.1,6.1168]
[1735776567452,20.0,194.2,194.1,6.1168]
[1735776567658,0.96574588,194.19,194.1,6.1168]
[1735776568351,23.776884,194.23,194.1,6.1168]
[1735776568542,23.776884,194.21,194.11,1.29217573]
[1735776568742,0.9656494,194.2,194.11,1.29217573]
[1735776569142,0.9656494,194.2,194.1,6.1168]
[1735776570360,23.776884,194.2,194.1,6.1168]
[1735776570573,23.776884,194.2,194.11,1.29216109]
[1735776570734,0.96562095,194.19,194.11,1.29216109]
[1735776570934,20.0,194.22,194.12,1.5059]
[1735776571134,8.08910157,194.3,194.13,20.0]
[1735776571135,0.96556279,194.21,194.13,20.0]
[1735776571335,8.08910157,194.3,194.13,20.0]
[1735776571336,0.9655462,194.27,194.15,21.5059]
[1735776571577,0.9655462,194.27,194.16,6.4096]
[1735776571749,23.776884,194.26,194.16,6.4096]
[1735776572064,0.96537914,194.25,194.16,7.70134222]
[1735776572367,23.776884,194.27,194.16,7.70134222]
[1735776572540,0.96534172,194.26,194.17,1.29174222]
[1735776572941,0.96534172,194.26,194.17,1.6777064]
[1735776573171,0.96531033,194.28,194.18,1.29174222]
[1735776573462,23.776884,194.27,194.18,1.29174222]
[1735776573684,6.11061178,194.36,194.19,21.89180324]
[1735776573968,6.11061178,194.36,194.2,10.23063772]
[1735776574143,6.11061178,194.36,194.22,6.0598]
[1735776574347,6.11061178,194.36,194.23,0.38526358]
[1735776574545,23.776884,194.35,194.23,1.6770058]
[1735776574849,0.96499191,194.34,194.23,1.6770058]
[1735776575050,0.9649077,194.36,194.26,1.504]
[1735776575251,23.776884,194.35,194.26,1.504]
[1735776575659,0.96490226,194.36,194.27,0.38504315]
[1735776575959,0.96490226,194.36,194.26,1.504]
[1735776577461,23.776884,194.35,194.26,1.504]
[1735776577640,0.9649531,194.34,194.26,1.504]
[1735776578957,23.776884,194.35,194.26,1.504]
[1735776579166,0.96489564,194.34,194.26,1.504]
[1735776580257,23.776884,194.33,194.26,1.504]
[1735776580572,0.96507333,194.32,194.26,1.504]
[1735776581981,23.776884,194.31,194.26,1.504]
[1735776582192,0.96516166,194.3,194.26,1.504]
[1735776582481,23.776884,194.32,194.26,1.504]
[1735776582652,0.9651648,194.31,194.26,1.504]
[1735776583366,6.1115648,194.31,194.26,1.504]
[1735776583575,6.1115648,194.31,194.21,1.504]
[1735776583881,23.776884,194.3,194.21,1.504]
[1735776584174,23.776884,194.28,194.21,1.504]
[1735776584370,23.776884,194.26,194.21,1.504]
[1735776584581,23.776884,194.24,194.21,1.504]
[1735776584754,5.1473,194.28,194.21,1.504]
[1735776584755,0.96548371,194.23,194.21,1.504]
[1735776584961,23.776884,194.26,194.21,1.504]
[1735776585175,23.776884,194.24,194.21,1.504]
[1735776585469,0.96550494,194.23,194.21,1.504]
[1735776588291,23.776884,194.22,194.15,1.504]
[1735776588491,23.776884,194.2,194.15,1.504]
[1735776588703,0.96572698,194.19,194.15,1.504]
[1735776589489,23.776884,194.23,194.15,1.504]
[1735776589679,0.96550964,194.22,194.15,1.504]
[1735776589880,0.96550872,194.24,194.15,1.504]
[1735776590295,23.776884,194.23,194.15,1.504]
[1735776591602,23.776884,194.28,194.15,1.504]
[1735776591905,23.776884,194.26,194.15,1.504]
[1735776592102,23.776884,194.24,194.15,1.504]
[1735776592270,0.965469,194.23,194.15,1.504]
[1735776594380,4.98336501,194.35,194.15,1.504]
[1735776594381,5.1466,194.3,194.17,20.0]
[1735776594581,0.96522569,194.29,194.18,20.0]
[1735776594783,20.0,194.31,194.19,1.5434]
[1735776595107,20.0,194.29,194.19,1.5434]
[1735776595274,24.74215096,194.28,194.19,1.5434]
[1735776595605,0.96526696,194.28,194.19,1.5434]